fUSD/lending_fUSD_20251221
["ID","MTS","AMOUNT","RATE_DAILY","PERIOD"]
[399317093,1766289039919,-151.0,0.00012023,2]
[399317094,1766289039928,-151.0,0.00012023,2]
[399317095,1766289039937,-151.0,0.00012023,2]
[399317096,1766289039947,-620.0,0.00012023,2]
[399317097,1766289039956,-500.0,0.00012029,2]
[399317098,1766289039965,-1000.0,0.0001203,2]
[399317099,1766289039974,-157.30770793,0.00012043,2]
[399317100,1766289039984,-620.0,0.00012297,2]
[399317101,1766289039993,-500.0,0.00012303,2]
[399317102,1766289040003,-9999.99,0.00012482,2]
[399317103,1766289040012,-1194.52,0.00012482,2]
[399317104,1766289040022,-1960.85344964,0.00012482,2]
[399317105,1766289040031,-620.0,0.00012571,2]
[399317106,1766289040040,-264.28845516,0.00012577,2]
[399317107,1766289040050,-620.0,0.00012845,2]
[399317108,1766289040059,-2392.61907495,0.00013034,2]
[399317109,1766289040070,-1960.85344964,0.00013034,2]
[399317110,1766289040079,-620.0,0.00013119,2]
[399317111,1766289040089,-620.04,0.00013393,2]
[399317112,1766289040098,-2392.61907495,0.00013587,2]
[399317113,1766289040108,-1960.85344964,0.00013587,2]
[399317115,1766289040118,-166.66,0.00013699,2]
[399317117,1766289040127,-529.49345819,0.00013699,2]
[399317119,1766289040136,-500.0,0.00013699,2]
[399317120,1766289040145,-177.63671361,0.00013699,2]
[399317121,1766289040155,-5329.06,0.000137,2]
[399317122,1766289040164,-5329.06,0.000137,2]
[399317123,1766289040173,-1143.0,0.00013868,2]
[399317124,1766289040182,-256.0,0.00013868,2]
[399317125,1766289040191,-162.88863399,0.00013873,2]
[399317126,1766289040200,-166.66,0.00013973,2]
[399317127,1766289040209,-170.66931934,0.00014007,2]
[399317128,1766289040219,-2392.61907495,0.00014139,2]
[399317129,1766289040228,-1960.85344964,0.00014139,2]
[399317130,1766289040238,-166.66,0.00014248,2]
[399317131,1766289040247,-166.66,0.00014522,2]
[399317132,1766289040256,-200.0,0.00014532,2]
[399317133,1766289040266,-1000.0,0.00014532,2]
[399317134,1766289040275,-2392.61907495,0.00014691,2]
[399317135,1766289040286,-1960.85344964,0.00014691,2]
[399317136,1766289040298,-166.66,0.00014797,2]
[399317137,1766289040306,-12244.76,0.00014844,2]
[399317138,1766289040316,-205.35321334,0.000149,2]
[399317139,1766289040326,-166.66,0.00015071,2]
[399317140,1766289040335,-2392.61907495,0.00015243,2]
[399317141,1766289040345,-1960.85344964,0.00015243,2]
[399317142,1766289040354,-550.63343568,0.00015783,2]
[399317143,1766289040363,-2392.61907495,0.00015796,2]
[399317144,1766289040372,-1960.85344964,0.00015796,2]
[399317145,1766289040381,-632.75,0.00015866,2]
[399317146,1766289040391,-187.9719643,0.00015971,2]
[399317147,1766289040412,-1046.43,0.00016062,2]
[399317148,1766289040423,-9999.99,0.00016116,2]
[399317149,1766289040432,-8096.46,0.00016116,2]
[399317150,1766289040442,-999.0,0.0001624,3]
[399317151,1766289040452,-2392.61907495,0.00016348,2]
[399317152,1766289040461,-1960.85344964,0.00016348,2]
[399317153,1766289040470,-1000.0,0.00016348,2]
[399317154,1766289040480,-500.0,0.00016438,2]
[399317155,1766289040489,-500.0,0.00016438,2]
[399317156,1766289040498,-500.0,0.00016438,2]
[399317157,1766289040507,-381.76400835,0.00016438,2]
[399317158,1766289040516,-500.0,0.00016438,2]
[399317159,1766289040525,-167.86,0.00016712,2]
[399317160,1766289040535,-3843.7018425,0.00016817,2]
[399317161,1766289040544,-32528.827169,0.00016817,2]
[399317162,1766289040553,-162.0,0.00016849,2]
[399317163,1766289040563,-2392.61907495,0.000169,2]
[399317164,1766289040572,-10000.0,0.000169,2]
[399317165,1766289040581,-1960.85344964,0.000169,2]
[399317166,1766289040590,-415.91737958,0.000169,2]
[399317167,1766289040599,-410.18800875,0.000169,2]
[399317168,1766289040609,-294.2758975,0.00016949,2]
[399317169,1766289040618,-3105537.32256195,0.00017,2]
[399317170,1766289040629,-778.11063303,0.00017,2]
[399317171,1766289040639,-7032.92290676,0.00017,2]
[399317172,1766289040650,-2567561.6021435,0.00017,2]
[399317183,1766289042470,-301.22772183,0.00013952,2]
[399317184,1766289042479,-230.48319557,0.00013952,2]
[399317186,1766289042488,-2196.18414257,0.00017,2]
[399317187,1766289042499,-2170.09,0.00017,2]
[399317188,1766289042546,-1908.94807662,0.00017,2]
[399317189,1766289042557,-730.97134459,0.00017,2]
[399317190,1766289042599,-259.15716269,0.00017,2]
[399317191,1766289042609,-15790.99174913,0.00017,2]
[399317192,1766289042619,-250.0,0.00017,2]
[399317193,1766289042628,-5451.5,0.00017038,2]
[399317194,1766289042637,-166.66,0.00017268,2]
[399317195,1766289042647,-157.92001484,0.00017324,2]
[399317196,1766289042658,-166.66,0.00017803,2]
[399317197,1766289042668,-632.75,0.00017849,2]
[399317198,1766289042678,-208.46166349,0.00017934,2]
[399317199,1766289042687,-1000.0,0.00018082,2]
[399317200,1766289042696,-1000.0,0.00018165,2]
[399317201,1766289042705,-20564.50163355,0.00018202,2]
[399317202,1766289042716,-521.7277719,0.00018202,2]
[399317203,1766289042727,-4767.56059455,0.00018202,2]
[399317204,1766289042737,-150.0,0.00018326,2]
[399317205,1766289042746,-166.66,0.00018337,2]
[399317206,1766289042755,-2799.42409872,0.00018461,2]
[399317207,1766289042772,-482.92950368,0.00018461,2]
[399317210,1766289045372,-14699.24187245,0.00018461,2]
[399317211,1766289045530,-1031.79579359,0.00018461,2]
[399317212,1766289045583,-919.39075328,0.00018461,2]
[399317213,1766289045638,-850.305,0.00018461,2]
[399317214,1766289045649,-959.66118939,0.00018461,2]
[399317215,1766289045692,-1155.39425,0.00018461,2]
[399317216,1766289045703,-1556.54727354,0.00018461,2]
[399317217,1766289045714,-619.59135763,0.00018461,2]
[399317339,1766289582911,-653.2188291,0.00011829,2]
[399317340,1766289585466,-282.2784794,0.00011829,2]
[399317341,1766289589021,-264.5026915,0.00011829,2]
[399317342,1766289589048,-10.87177666,0.00011829,2]
[399317343,1766289590052,-278.54693503,0.00011829,2]
[399317344,1766289593445,-10.58128831,0.00011829,2]
[399317345,1766289593479,-271.5456745,0.00011829,2]
[399317346,1766289597119,-189.02492322,0.00011829,2]
[399317347,1766289601924,-320.88590932,0.00011829,2]
[399317348,1766289604830,-208.88140583,0.00011829,2]
[399317349,1766289606972,-71.66208713,0.00011829,2]
[399317350,1766289606996,-228.33791287,0.00011829,2]
[399317352,1766289608630,-71.66208713,0.00011829,2]
[399317353,1766289608653,-132.37147439,0.00011829,2]
[399317357,1766289610617,-62.62852561,0.00011829,2]
[399317358,1766289610639,-300.0,0.00011829,2]
[399317359,1766289610659,-192.16279521,0.00011829,2]
[399317360,1766289613295,-108.7749876,0.00011829,2]
[399317361,1766289613317,-215.25675969,0.0001183,2]
[399317362,1766289614944,-208.93915644,0.0001183,2]
[399317363,1766289616965,-266.60776493,0.0001183,2]
[399317364,1766289616989,-40.89136334,0.0001183,2]
[399317365,1766289618451,-196.61821461,0.0001183,2]
[399317366,1766289619958,-180.71844043,0.0001183,2]
[399317367,1766289621490,-170.07244356,0.0001183,2]
[399317368,1766289622939,-149.23217212,0.0001183,2]
[399317369,1766289622961,-195.0,0.00011849,2]
[399317370,1766289622983,-105.76782788,0.00011849,2]
[399317377,1766289642945,-252.84888257,0.00011771,2]
[399317378,1766289645746,-326.56624515,0.00011771,2]
[399317379,1766289647401,-252.22505109,0.00011771,2]
[399317380,1766289649880,-210.0,0.00011771,2]
[399317381,1766289651468,-227.26345328,0.00011771,2]
[399317382,1766289654765,-196.42208196,0.00011771,2]
[399317383,1766289658154,-173.95475946,0.00011771,2]
[399317384,1766289660525,-159.41244379,0.00011771,2]
[399317386,1766289662971,-157.07115,0.00011771,2]
[399317387,1766289665012,-387.10850435,0.00011771,2]
[399317388,1766289666572,-205.24623837,0.00011771,2]
[399317389,1766289670402,-242.28431134,0.00011771,2]
[399317390,1766289672013,-271.03043619,0.00011771,2]
[399317391,1766289675017,-232.351131,0.00011771,2]
[399317392,1766289676487,-198.87405221,0.00011771,2]
[399317393,1766289678940,-161.4227791,0.00011771,2]
[399317394,1766289681020,-185.33896796,0.00011771,2]
[399317395,1766289682074,-333.54423251,0.00011771,2]
[399317397,1766289685725,-304.17205855,0.00011771,2]
[399317398,1766289687231,-185.34531192,0.00011771,2]
[399317402,1766289693909,-160.39927513,0.00011771,2]
[399317403,1766289695517,-144.64881507,0.00011771,2]
[399317404,1766289695539,-207.43245972,0.0001183,2]
[399317405,1766289701273,-196.73459677,0.00011691,2]
[399317406,1766289703513,-384.03187106,0.00011691,2]
[399317407,1766289707852,-250.73208057,0.00011691,2]
[399317408,1766289710194,-184.66639574,0.00011691,2]
[399317409,1766289712892,-26.00505586,0.00011691,2]
[399317410,1766289712913,-175.919,0.00011691,2]
[399317411,1766289712934,-207.60500317,0.0001183,2]
[399317412,1766289716269,-169.82237705,0.0001183,2]
[399317413,1766289719407,-234.73090357,0.0001183,2]
[399317414,1766289723173,-250.0,0.00011829,2]
[399317415,1766289726524,-215.26,0.00011632,2]
[399317416,1766289727533,-205.1043219,0.00011632,2]
[399317417,1766289731688,-294.8956781,0.00011632,2]
[399317418,1766289735270,-527.2430719,0.00011632,2]
[399317419,1766289740348,-246.62979493,0.00011632,2]
[399317420,1766289741877,-159.99559836,0.00011632,2]
[399317425,1766289778432,-161.14895581,0.00011632,2]
[399317426,1766289778453,-98.08844176,0.00011757,2]
[399317427,1766289780031,-414.5965565,0.00011757,2]
[399317428,1766289781578,-213.25364389,0.00011757,2]
[399317429,1766289783697,-163.84861391,0.00011757,2]
[399317430,1766289785838,-95.42612224,0.00011757,2]
[399317431,1766289785862,-190.07249833,0.00011829,2]
[399317449,1766289912854,-109.92750167,0.00011829,2]
[399317450,1766289912878,-150.0,0.00011829,2]
[399317451,1766289912904,-5.19100464,0.00011829,2]
[399317452,1766289914966,-200.08279324,0.00011829,2]
[399317453,1766289922726,-94.72620212,0.00011829,2]
[399317454,1766289922748,-205.78673127,0.00011829,2]
[399317455,1766289924440,-94.21326873,0.00011829,2]
[399317456,1766289924463,-109.7692007,0.00011829,2]
[399317486,1766290093440,-160.87396896,0.00011829,2]
[399317488,1766290095577,-274.07195408,0.00011829,2]
[399317489,1766290100746,-346.07597434,0.00011829,2]
[399317490,1766290102463,-261.87751524,0.00011829,2]
[399317491,1766290106725,-47.33138668,0.00011829,2]
[399317492,1766290106747,-150.0,0.00011829,2]
[399317493,1766290106768,-77.15512232,0.0001183,2]
[399317494,1766290109227,-198.1970372,0.0001183,2]
[399317495,1766290111674,-393.31630514,0.0001183,2]
[399317496,1766290114761,-195.0,0.0001183,2]
[399317497,1766290117637,-2.72696724,0.0001183,2]
[399317498,1766290117658,-222.62718156,0.0001183,2]
[399317501,1766290119685,-155.78471602,0.0001182,2]
[399317503,1766290126235,-252.69606646,0.0001182,2]
[399317504,1766290128884,-178.75958012,0.0001182,2]
[399317519,1766290214353,-670.74242834,0.0001173,2]
[399317520,1766290219796,-227.11927634,0.0001173,2]
[399317521,1766290221192,-345.20480757,0.0001173,2]
[399317522,1766290223535,-224.60969678,0.0001173,2]
[399317524,1766290229866,-232.38144207,0.0001173,2]
[399317525,1766290231451,-634.47129063,0.0001173,2]
[399317526,1766290231463,-1848.75756851,0.0001173,2]
[399317527,1766290231555,-1366.96461276,0.0001173,2]
[399317528,1766290231567,-903.63050001,0.0001173,2]
[399317529,1766290231578,-265.00000012,0.0001173,2]
[399317530,1766290231589,-697.39149,0.0001173,2]
[399317531,1766290231600,-717.38573744,0.0001173,2]
[399317532,1766290231611,-300.03857324,0.0001173,2]
[399317533,1766290231650,-8972.47214088,0.0001173,2]
[399317534,1766290231659,-287.0,0.00011819,2]
[399317535,1766290231668,-480.0,0.00011819,2]
[399317536,1766290231678,-247.0,0.00011819,2]
[399317537,1766290231687,-250.0,0.00011819,2]
[399317538,1766290231697,-712.28951227,0.0001182,2]
[399317539,1766290231708,-302.28095713,0.0001182,2]
[399317540,1766290231719,-310.31,0.0001182,2]
[399317541,1766290231731,-6378.37033482,0.0001182,2]
[399317542,1766290231742,-1403.84725605,0.0001182,2]
[399317543,1766290231755,-6889.881243,0.0001182,2]
[399317544,1766290231767,-653.70972726,0.0001182,2]
[399317545,1766290231779,-297.05507805,0.0001182,2]
[399317548,1766290231797,-3976.52896673,0.0001182,2]
[399317550,1766290231808,-9767.83385312,0.0001182,2]
[399317552,1766290231819,-1599.22750367,0.0001182,2]
[399317554,1766290231830,-52035.10733989,0.0001182,2]
[399317556,1766290231841,-30141.63660871,0.0001182,2]
[399317564,1766290232020,-446.57079652,0.0001182,2]
[399317565,1766290237123,-344.67662293,0.0001182,2]
[399317566,1766290237584,-503.93718342,0.0001182,2]
[399317567,1766290237598,-1868.60706703,0.0001182,2]
[399317568,1766290237611,-518.98264,0.0001182,2]
[399317569,1766290237624,-496.1,0.0001182,2]
[399317570,1766290237640,-1749.18564804,0.0001182,2]
[399317571,1766290237653,-1658.57091694,0.0001182,2]
[399317572,1766290237667,-309.14664254,0.0001182,2]
[399317573,1766290237740,-877048.90373928,0.0001182,2]
[399317574,1766290237752,-2125.9611,0.0001183,2]
[399317575,1766290237763,-18173.49732431,0.0001183,2]
[399317576,1766290237774,-604.45322091,0.0001183,2]
[399317577,1766290237785,-312.39223844,0.00011849,2]
[399317578,1766290237796,-992.5739572,0.00011849,2]
[399317579,1766290237808,-1176.42,0.00011921,2]
[399317580,1766290237819,-500.0,0.00011922,2]
[399317581,1766290237830,-500.0,0.00011922,2]
[399317582,1766290237841,-500.0,0.00011922,2]
[399317583,1766290237852,-500.0,0.00011922,2]
[399317584,1766290237863,-164.84150446,0.00011922,2]
[399317585,1766290237875,-500.0,0.00011922,2]
[399317586,1766290237886,-500.0,0.00011922,2]
[399317587,1766290237897,-500.0,0.00011922,2]
[399317588,1766290237907,-500.0,0.00011922,2]
[399317589,1766290237919,-500.0,0.00011922,2]
[399317590,1766290237930,-500.0,0.00011922,2]
[399317591,1766290237941,-500.0,0.00011922,2]
[399317592,1766290237954,-500.0,0.00011922,2]
[399317593,1766290237965,-500.0,0.00011922,2]
[399317594,1766290237976,-500.0,0.00011922,2]
[399317595,1766290237987,-500.0,0.00011922,2]
[399317596,1766290238001,-500.0,0.00011922,2]
[399317597,1766290238012,-500.0,0.00011922,2]
[399317598,1766290238023,-500.0,0.00011922,2]
[399317599,1766290238035,-500.0,0.00011922,2]
[399317600,1766290238047,-500.0,0.00011922,2]
[399317601,1766290238059,-500.0,0.00011922,2]
[399317602,1766290238070,-500.0,0.00011922,2]
[399317603,1766290238081,-500.0,0.00011922,2]
[399317604,1766290238093,-500.0,0.00011922,2]
[399317607,1766290238106,-500.0,0.00011922,2]
[399317609,1766290238119,-500.0,0.00011922,2]
[399317611,1766290238131,-243.29999996,0.00011922,2]
[399317613,1766290238143,-500.0,0.00011922,2]
[399317614,1766290238155,-500.0,0.00011922,2]
[399317615,1766290238166,-500.0,0.00011922,2]
[399317616,1766290238178,-500.0,0.00011922,2]
[399317617,1766290238190,-500.0,0.00011922,2]
[399317618,1766290238202,-500.0,0.00011922,2]
[399317619,1766290238213,-500.0,0.00011922,2]
[399317620,1766290238225,-300.0,0.00011922,2]
[399317621,1766290238236,-500.0,0.00011922,2]
[399317622,1766290238248,-200.0,0.00011923,2]
[399317623,1766290238259,-151.0,0.00011923,2]
[399317624,1766290238270,-500.0,0.00011923,2]
[399317625,1766290238281,-500.0,0.00011923,2]
[399317626,1766290238292,-151.0,0.00011923,2]
[399317627,1766290238303,-151.0,0.00011923,2]
[399317628,1766290238314,-500.0,0.00011923,2]
[399317629,1766290238325,-151.0,0.00011923,2]
[399317630,1766290238337,-500.0,0.00011923,2]
[399317631,1766290238348,-151.0,0.00011923,2]
[399317632,1766290238360,-500.0,0.00011923,2]
[399317633,1766290238372,-151.0,0.00011923,2]
[399317634,1766290238383,-500.0,0.00011923,2]
[399317635,1766290238394,-151.0,0.00011923,2]
[399317636,1766290238406,-500.0,0.00011923,2]
[399317637,1766290238417,-151.0,0.00011923,2]
[399317638,1766290238428,-500.0,0.00011923,2]
[399317639,1766290238440,-151.0,0.00011923,2]
[399317640,1766290238451,-500.0,0.00011923,2]
[399317641,1766290238462,-500.0,0.00011923,2]
[399317642,1766290238474,-151.0,0.00011923,2]
[399317643,1766290238486,-500.0,0.00011923,2]
[399317644,1766290238498,-151.0,0.00011923,2]
[399317645,1766290238511,-200.0,0.00011923,2]
[399317646,1766290238522,-500.0,0.00011923,2]
[399317647,1766290238535,-151.0,0.00011923,2]
[399317648,1766290238546,-151.0,0.00011923,2]
[399317649,1766290238558,-153.1696294,0.00011923,2]
[399317650,1766290238570,-151.0,0.00011923,2]
[399317651,1766290238581,-500.0,0.00011923,2]
[399317652,1766290238592,-151.0,0.00011923,2]
[399317653,1766290238604,-500.0,0.00011923,2]
[399317654,1766290238615,-151.0,0.00011923,2]
[399317655,1766290238626,-500.0,0.00011923,2]
[399317656,1766290238640,-151.0,0.00011923,2]
[399317657,1766290238659,-500.0,0.00011923,2]
[399317658,1766290238670,-151.0,0.00011923,2]
[399317659,1766290238681,-500.0,0.00011923,2]
[399317660,1766290238692,-151.0,0.00011923,2]
[399317661,1766290238704,-500.0,0.00011923,2]
[399317662,1766290238716,-151.0,0.00011923,2]
[399317663,1766290238727,-500.0,0.00011923,2]
[399317664,1766290238739,-500.0,0.00011923,2]
[399317665,1766290238750,-500.0,0.00011923,2]
[399317666,1766290238761,-151.0,0.00011923,2]
[399317667,1766290238772,-500.0,0.00011923,2]
[399317668,1766290238783,-151.0,0.00011923,2]
[399317669,1766290238794,-500.0,0.00011923,2]
[399317670,1766290238804,-151.0,0.00011923,2]
[399317671,1766290238815,-500.0,0.00011923,2]
[399317672,1766290238826,-151.0,0.00011923,2]
[399317673,1766290238837,-151.0,0.00011923,2]
[399317674,1766290238848,-151.0,0.00011923,2]
[399317675,1766290238860,-151.0,0.00011923,2]
[399317676,1766290238871,-151.0,0.00011923,2]
[399317677,1766290238883,-151.0,0.00011923,2]
[399317678,1766290238895,-151.0,0.00011923,2]
[399317679,1766290238906,-151.0,0.00011923,2]
[399317680,1766290238919,-151.0,0.00011923,2]
[399317681,1766290238929,-151.0,0.00011923,2]
[399317682,1766290238940,-200.0,0.00011923,2]
[399317683,1766290238951,-151.0,0.00011923,2]
[399317684,1766290238962,-500.0,0.00011923,2]
[399317685,1766290238973,-362.05559105,0.00011923,2]
[399317688,1766290239730,-500.0,0.00011929,2]
[399317689,1766290239760,-223.27451561,0.00011929,2]
[399317690,1766290239781,-206.3220917,0.00011929,2]
[399317691,1766290239791,-432.57358172,0.00011929,2]
[399317692,1766290239800,-1000.0,0.0001193,2]
[399317693,1766290239810,-500.0,0.0001193,2]
[399317694,1766290239819,-1647.08,0.00012,2]
[399317695,1766290239829,-1176.42,0.00012195,2]
[399317696,1766290239839,-500.0,0.00012204,2]
[399317697,1766290239850,-1176.42,0.00012469,2]
[399317698,1766290239859,-200.0,0.00012471,2]
[399317699,1766290239868,-200.0,0.00012471,2]
[399317700,1766290239878,-500.0,0.00012471,2]
[399317701,1766290239887,-502.99965968,0.00012478,2]
[399317702,1766290239896,-1176.42,0.00012743,2]
[399317703,1766290239905,-404.26767003,0.0001276,2]
[399317704,1766290239915,-195.0,0.00012903,2]
[399317705,1766290239925,-300.0,0.00012903,2]
[399317706,1766290239934,-250.0,0.00012903,2]
[399317707,1766290239943,-193.0,0.00013001,2]
[399317708,1766290239952,-195.0,0.00013001,2]
[399317709,1766290239961,-300.0,0.00013001,2]
[399317710,1766290239971,-250.0,0.00013001,2]
[399317711,1766290239981,-1176.42,0.00013017,2]
[399317712,1766290239990,-200.0,0.00013019,2]
[399317713,1766290239999,-200.0,0.00013019,2]
[399317714,1766290240009,-1176.42,0.00013291,2]
[399317715,1766290240018,-153.0,0.00013429,2]
[399317716,1766290240027,-1176.42,0.00013565,2]
[399317717,1766290240036,-467.95,0.00013665,2]
[399317718,1766290240046,-290.19231501,0.00013698,2]
[399317719,1766290240055,-500.0,0.00013698,2]
[399317720,1766290240064,-500.0,0.00013698,2]
[399317721,1766290240074,-500.0,0.00013698,2]
[399317722,1766290240083,-513.10702335,0.00013698,2]
[399317723,1766290240092,-310.1446089,0.00013698,2]
[399317724,1766290240102,-500.0,0.00013698,2]
[399317725,1766290240113,-500.0,0.00013698,2]
[399317726,1766290240125,-500.0,0.00013698,2]
[399317727,1766290240134,-500.0,0.00013698,2]
[399317728,1766290240143,-500.0,0.00013698,2]
[399317729,1766290240155,-500.0,0.00013698,2]
[399317730,1766290240164,-500.0,0.00013698,2]
[399317731,1766290240174,-500.0,0.00013698,2]
[399317732,1766290240185,-298.12712902,0.00013698,2]
[399317733,1766290240200,-500.0,0.00013698,2]
[399317734,1766290240210,-500.0,0.00013698,2]
[399317735,1766290240220,-500.0,0.00013698,2]
[399317736,1766290240229,-500.0,0.00013698,2]
[399317737,1766290240239,-500.0,0.00013698,2]
[399317738,1766290240249,-500.0,0.00013698,2]
[399317739,1766290240259,-500.0,0.00013698,2]
[399317740,1766290240269,-500.0,0.00013698,2]
[399317741,1766290240279,-500.0,0.00013698,2]
[399317742,1766290240289,-500.0,0.00013698,2]
[399317743,1766290240299,-500.0,0.00013698,2]
[399317744,1766290240309,-500.0,0.00013698,2]
[399317745,1766290240320,-500.0,0.00013698,2]
[399317746,1766290240329,-500.0,0.00013698,2]
[399317747,1766290240339,-500.0,0.00013698,2]
[399317748,1766290240349,-512.86362599,0.00013698,2]
[399317749,1766290240358,-418.73339272,0.00013698,2]
[399317750,1766290240368,-500.0,0.00013698,2]
[399317751,1766290240377,-500.0,0.00013698,2]
[399317752,1766290240387,-215.39925149,0.00013698,2]
[399317753,1766290240396,-523.69418113,0.00013698,2]
[399317754,1766290240406,-500.0,0.00013698,2]
[399317755,1766290240415,-152.26237204,0.00013698,2]
[399317756,1766290240425,-500.0,0.00013698,2]
[399317757,1766290240434,-500.0,0.00013698,2]
[399317758,1766290240443,-500.0,0.00013698,2]
[399317759,1766290240453,-500.0,0.00013698,2]
[399317760,1766290240463,-509.97247269,0.00013698,2]
[399317761,1766290240473,-999.99,0.00013699,2]
[399317762,1766290240483,-9999.99,0.00013699,2]
[399317763,1766290240492,-4677.07,0.00013699,2]
[399317764,1766290240501,-150.99,0.00013699,2]
[399317765,1766290240511,-299.99,0.00013699,2]
[399317766,1766290240520,-1192.34,0.00013699,2]
[399317767,1766290240530,-500.0,0.00013699,2]
[399317768,1766290240539,-500.0,0.00013699,2]
[399317769,1766290240549,-500.0,0.00013699,2]
[399317770,1766290240558,-246.07,0.00013728,2]
[399317771,1766290240568,-6068.09,0.00013746,2]
[399317772,1766290240578,-1176.48,0.00013839,2]
[399317773,1766290240587,-500.0,0.00013858,2]
[399317774,1766290240596,-547.46538815,0.00013873,2]
[399317775,1766290240606,-168.84175508,0.00013873,2]
[399317776,1766290240615,-504.75718968,0.00013873,2]
[399317777,1766290240624,-500.0,0.00013873,2]
[399317778,1766290240634,-501.7326664,0.00013873,2]
[399317779,1766290240644,-500.0,0.00013873,2]
[399317780,1766290240654,-500.0,0.00013873,2]
[399317781,1766290240663,-500.0,0.00013873,2]
[399317782,1766290240673,-500.0,0.00013873,2]
[399317783,1766290240682,-500.0,0.00013873,2]
[399317784,1766290240691,-502.33266332,0.00013873,2]
[399317785,1766290240700,-502.35105933,0.00013873,2]
[399317786,1766290240709,-502.37618303,0.00013873,2]
[399317787,1766290240718,-500.0,0.00013873,2]
[399317788,1766290240727,-500.0,0.00013873,2]
[399317789,1766290240736,-835.66,0.00013886,2]
[399317790,1766290240746,-312.0,0.0001393,2]
[399317792,1766290240755,-374.0,0.00013958,2]
[399317793,1766290240764,-1075.0,0.00013985,2]
[399317794,1766290240774,-1430.0,0.00014013,2]
[399317795,1766290240783,-639.0,0.0001403,2]
[399317796,1766290240792,-151.0,0.00014033,2]
[399317797,1766290240801,-1878.0,0.00014058,2]
[399317798,1766290240811,-150.0,0.00014218,2]
[399317799,1766290240820,-151.0,0.0001435,2]
[399317800,1766290240829,-365.0,0.00014395,2]
[399317801,1766290240838,-1002.70843271,0.00014421,2]
[399317802,1766290240847,-1001.99821802,0.00014421,2]
[399317803,1766290240856,-715.8994755,0.00014421,2]
[399317804,1766290240866,-1002.74892513,0.00014421,2]
[399317805,1766290240875,-1000.0,0.00014421,2]
[399317806,1766290240884,-504.37721769,0.00014421,2]
[399317807,1766290240893,-1002.92716706,0.00014421,2]
[399317808,1766290240903,-1005.30925531,0.00014421,2]
[399317809,1766290240911,-351.0,0.00014423,2]
[399317810,1766290240920,-237.0,0.0001449,2]
[399317811,1766290240930,-200.0,0.00014662,2]
[399317812,1766290240939,-17406.16956464,0.00014749,2]
[399317813,1766290240949,-6598.83491072,0.00014838,2]
[399317814,1766290241375,-752.0900232,0.00014838,2]
[399317815,1766290241386,-746.71567383,0.00014838,2]
[399317816,1766290241400,-451.169914,0.00014838,2]
[399317817,1766290241411,-295.25399992,0.00014838,2]
[399317818,1766290241423,-695.86321115,0.00014838,2]
[399317819,1766290241436,-1585.57729937,0.00014838,2]
[399317820,1766290241447,-4231.69083979,0.00014838,2]
[399317821,1766290241459,-3038.92863383,0.00014838,2]
[399317822,1766290241469,-500.97245458,0.00015212,2]
[399317823,1766290241478,-604.4532209,0.00015697,2]
[399317824,1766290241488,-250.4632069,0.00015798,2]
[399317825,1766290241497,-621.23,0.00015861,2]
[399317826,1766290241506,-196.03,0.0001617,2]
[399317827,1766290241516,-866.39543189,0.00016342,2]
[399317828,1766290241526,-264.64044537,0.00016438,2]
[399317829,1766290241535,-10201.92,0.00016438,2]
[399317830,1766290241546,-500.0,0.00016973,2]
[399317831,1766290241556,-474.91641866,0.00016976,2]
[399317832,1766290241565,-207.99,0.00016985,3]
[399317833,1766290241575,-31397.34833742,0.00016986,2]
[399317834,1766290241611,-4514.51,0.00016986,2]